fUST/lending_fUST_20240902
["ID","MTS","AMOUNT","RATE_DAILY","PERIOD"]
[336909261,1725239442786,-500.0,0.00024657,2]
[336909263,1725239442796,-500.0,0.00024657,2]
[336909265,1725239442805,-500.0,0.00024657,2]
[336909267,1725239442815,-500.0,0.00024657,2]
[336909269,1725239442824,-500.0,0.00024657,2]
[336909285,1725239442975,-500.0,0.00024657,2]
[336909288,1725239442987,-500.0,0.00024657,2]
[336909290,1725239443000,-500.0,0.00024657,2]
[336909292,1725239443010,-500.0,0.00024657,2]
[336909294,1725239443019,-500.0,0.00024657,2]
[336909296,1725239443029,-500.0,0.00024657,2]
[336909298,1725239443039,-500.0,0.00024657,2]
[336909300,1725239443048,-506.44536455,0.00024657,2]
[336909302,1725239443059,-786.51,0.00024657,2]
[336909304,1725239443068,-585.41073934,0.00024657,2]
[336909305,1725239443078,-500.0,0.00024657,2]
[336909307,1725239443088,-500.0,0.00024657,2]
[336909309,1725239443097,-500.0,0.00024657,2]
[336909311,1725239443107,-500.0,0.00024657,2]
[336909313,1725239443117,-923.48,0.00024657,2]
[336909316,1725239443128,-500.0,0.00024657,2]
[336909318,1725239443138,-500.0,0.00024657,2]
[336909320,1725239443149,-332.08706486,0.00024657,2]
[336909322,1725239443158,-500.0,0.00024657,2]
[336909324,1725239443169,-500.0,0.00024657,2]
[336909326,1725239443178,-500.0,0.00024657,2]
[336909328,1725239443188,-1439.72,0.00024657,2]
[336909330,1725239443197,-580.91,0.00024657,2]
[336909332,1725239443206,-500.0,0.00024657,2]
[336909334,1725239443215,-500.0,0.00024657,2]
[336909335,1725239443225,-500.0,0.00024657,2]
[336909336,1725239443234,-170.55112977,0.00024657,2]
[336909337,1725239443243,-697.53,0.00024657,2]
[336909339,1725239443252,-500.0,0.00024657,2]
[336909341,1725239443260,-500.0,0.00024657,2]
[336909343,1725239443270,-500.0,0.00024657,2]
[336909345,1725239443279,-500.0,0.00024657,2]
[336909347,1725239443290,-503.10336476,0.00024657,2]
[336909349,1725239443299,-846.84,0.00024657,2]
[336909352,1725239443309,-500.0,0.00024657,2]
[336909354,1725239443317,-500.0,0.00024657,2]
[336909356,1725239443327,-500.0,0.00024657,2]
[336909358,1725239443337,-500.0,0.00024657,2]
[336909359,1725239443347,-521.10866005,0.00024657,2]
[336909360,1725239443356,-500.0,0.00024657,2]
[336909361,1725239443365,-799.44,0.00024657,2]
[336909362,1725239443375,-842.8,0.00024657,2]
[336909363,1725239443386,-500.0,0.00024657,2]
[336909364,1725239443395,-501.51833889,0.00024657,2]
[336909365,1725239443405,-470.89626015,0.00024657,2]
[336909366,1725239443414,-500.0,0.00024657,2]
[336909367,1725239443423,-500.0,0.00024657,2]
[336909368,1725239443432,-500.0,0.00024657,2]
[336909369,1725239443441,-500.0,0.00024657,2]
[336909370,1725239443452,-500.0,0.00024657,2]
[336909371,1725239443464,-500.0,0.00024657,2]
[336909372,1725239443475,-500.0,0.00024657,2]
[336909373,1725239443484,-516.83,0.00024657,2]
[336909374,1725239443495,-500.0,0.00024657,2]
[336909375,1725239443504,-500.0,0.00024657,2]
[336909376,1725239443513,-500.0,0.00024657,2]
[336909377,1725239443522,-500.0,0.00024657,2]
[336909378,1725239443532,-500.0,0.00024657,2]
[336909379,1725239443541,-500.0,0.00024657,2]
[336909380,1725239443550,-589.36,0.00024657,2]
[336909381,1725239443560,-639.98416241,0.00024657,2]
[336909382,1725239443569,-500.0,0.00024657,2]
[336909383,1725239443578,-500.0,0.00024657,2]
[336909384,1725239443587,-500.0,0.00024657,2]
[336909385,1725239443598,-501.25193342,0.00024657,2]
[336909386,1725239443608,-284.10395751,0.00024657,2]
[336909387,1725239443620,-500.0,0.00024657,2]
[336909388,1725239443632,-500.0,0.00024657,2]
[336909389,1725239443643,-500.0,0.00024657,2]
[336909390,1725239443652,-500.0,0.00024657,2]
[336909391,1725239443661,-500.0,0.00024657,2]
[336909392,1725239443670,-500.0,0.00024657,2]
[336909393,1725239443680,-500.0,0.00024657,2]
[336909394,1725239443689,-280.06400868,0.00024657,2]
[336909395,1725239443699,-813.37,0.00024657,2]
[336909396,1725239443708,-500.0,0.00024657,2]
[336909397,1725239443717,-513.10319101,0.00024657,2]
[336909398,1725239443727,-500.0,0.00024657,2]
[336909399,1725239443737,-500.0,0.00024657,2]
[336909400,1725239443746,-500.0,0.00024657,2]
[336909401,1725239443756,-501.77420178,0.00024657,2]
[336909402,1725239443766,-500.0,0.00024657,2]
[336909403,1725239443777,-500.0,0.00024657,2]
[336909404,1725239443787,-595.66963489,0.00024657,2]
[336909405,1725239443796,-503.61261762,0.00024657,2]
[336909406,1725239443806,-500.0,0.00024657,2]
[336909408,1725239443816,-500.0,0.00024657,2]
[336909409,1725239443825,-500.0,0.00024657,2]
[336909410,1725239443834,-500.0,0.00024657,2]
[336909411,1725239443844,-501.51402623,0.00024657,2]
[336909412,1725239443854,-500.0,0.00024657,2]
[336909413,1725239443863,-500.0,0.00024657,2]
[336909414,1725239443873,-500.0,0.00024657,2]
[336909415,1725239443883,-1106.27,0.00024657,2]
[336909416,1725239443892,-500.0,0.00024657,2]
[336909417,1725239443901,-500.0,0.00024657,2]
[336909418,1725239443911,-500.0,0.00024657,2]
[336909419,1725239443920,-500.0,0.00024657,2]
[336909420,1725239443929,-500.0,0.00024657,2]
[336909421,1725239443939,-500.0,0.00024657,2]
[336909422,1725239443948,-500.0,0.00024657,2]
[336909423,1725239443958,-500.0,0.00024657,2]
[336909424,1725239443967,-528.79951176,0.00024657,2]
[336909425,1725239443976,-500.0,0.00024657,2]
[336909427,1725239443985,-500.0,0.00024657,2]
[336909429,1725239443995,-500.0,0.00024657,2]
[336909431,1725239444004,-500.0,0.00024657,2]
[336909433,1725239444014,-500.0,0.00024657,2]
[336909435,1725239444023,-500.0,0.00024657,2]
[336909436,1725239444032,-500.0,0.00024657,2]
[336909438,1725239444042,-500.0,0.00024657,2]
[336909440,1725239444051,-500.0,0.00024657,2]
[336909442,1725239444061,-500.0,0.00024657,2]
[336909444,1725239444070,-500.0,0.00024657,2]
[336909446,1725239444081,-500.0,0.00024657,2]
[336909448,1725239444091,-500.0,0.00024657,2]
[336909450,1725239444110,-181.06408415,0.00024657,2]
[336909452,1725239444119,-500.0,0.00024657,2]
[336909454,1725239444128,-500.0,0.00024657,2]
[336909456,1725239444137,-451.82667742,0.00024657,2]
[336909458,1725239444147,-1321.5,0.00024657,2]
[336909460,1725239444156,-500.0,0.00024657,2]
[336909462,1725239444165,-200.0,0.00024657,2]
[336909464,1725239444175,-500.0,0.00024657,2]
[336909466,1725239444184,-500.0,0.00024657,2]
[336909468,1725239444194,-500.0,0.00024657,2]
[336909470,1725239444203,-1357.46,0.00024657,2]
[336909472,1725239444212,-500.0,0.00024657,2]
[336909474,1725239444221,-500.0,0.00024657,2]
[336909475,1725239444231,-763.19,0.00024657,2]
[336909476,1725239444241,-500.0,0.00024657,2]
[336909477,1725239444250,-520.47,0.00024657,2]
[336909478,1725239444259,-1391.38,0.00024657,2]
[336909479,1725239444268,-500.0,0.00024657,2]
[336909480,1725239444278,-500.0,0.00024657,2]
[336909481,1725239444287,-500.0,0.00024657,2]
[336909482,1725239444297,-500.0,0.00024657,2]
[336909483,1725239444306,-500.0,0.00024657,2]
[336909484,1725239444315,-500.0,0.00024657,2]
[336909485,1725239444323,-500.0,0.00024657,2]
[336909486,1725239444333,-500.0,0.00024657,2]
[336909488,1725239444342,-500.0,0.00024657,2]
[336909490,1725239444355,-553.39,0.00024657,2]
[336909492,1725239444364,-500.0,0.00024657,2]
[336909494,1725239444373,-500.0,0.00024657,2]
[336909496,1725239444382,-500.0,0.00024657,2]
[336909498,1725239444392,-500.0,0.00024657,2]
[336909500,1725239444401,-589.75940358,0.00024657,2]
[336909501,1725239444410,-500.0,0.00024657,2]
[336909502,1725239444419,-500.0,0.00024657,2]
[336909503,1725239444428,-1993.58,0.00024657,2]
[336909504,1725239444437,-1993.58,0.00024657,2]
[336909505,1725239444447,-1993.58,0.00024657,2]
[336909506,1725239444456,-1993.58,0.00024657,2]
[336909507,1725239444465,-1993.58,0.00024657,2]
[336909508,1725239444474,-1993.58,0.00024657,2]
[336909509,1725239444483,-500.0,0.00024657,2]
[336909510,1725239444493,-1993.58,0.00024657,2]
[336909511,1725239444502,-1993.58,0.00024657,2]
[336909512,1725239444511,-500.0,0.00024657,2]
[336909513,1725239444520,-1993.58,0.00024657,2]
[336909514,1725239444529,-1993.58,0.00024657,2]
[336909515,1725239444538,-1993.58,0.00024657,2]
[336909516,1725239444547,-1993.58,0.00024657,2]
[336909517,1725239444556,-1107.63,0.00024657,2]
[336909518,1725239444565,-1993.58,0.00024657,2]
[336909519,1725239444575,-1993.58,0.00024657,2]
[336909520,1725239444583,-500.0,0.00024657,2]
[336909521,1725239444593,-500.0,0.00024657,2]
[336909522,1725239444605,-1553.74,0.00024657,2]
[336909523,1725239444614,-500.0,0.00024657,2]
[336909524,1725239444623,-500.0,0.00024657,2]
[336909525,1725239444633,-500.0,0.00024657,2]
[336909526,1725239444642,-392.50524189,0.00024657,2]
[336909527,1725239444652,-2363.48,0.00024657,2]
[336909528,1725239444661,-500.0,0.00024657,2]
[336909529,1725239444670,-1013.87,0.00024657,2]
[336909530,1725239444679,-2376.57,0.00024657,2]
[336909531,1725239444690,-500.0,0.00024657,2]
[336909532,1725239444699,-522.73356696,0.00024657,2]
[336909533,1725239444709,-628.89,0.00024657,2]
[336909534,1725239444718,-500.0,0.00024657,2]
[336909535,1725239444727,-500.0,0.00024657,2]
[336909536,1725239444737,-500.0,0.00024657,2]
[336909537,1725239444746,-500.0,0.00024657,2]
[336909538,1725239444755,-500.0,0.00024657,2]
[336909539,1725239444765,-2145.54,0.00024657,2]
[336909540,1725239444774,-500.0,0.00024657,2]
[336909541,1725239444783,-500.0,0.00024657,2]
[336909542,1725239444792,-500.0,0.00024657,2]
[336909543,1725239444802,-243.19647306,0.00024657,2]
[336909544,1725239444811,-415.81711232,0.00024657,2]
[336909545,1725239444820,-500.0,0.00024657,2]
[336909546,1725239444830,-1520.65,0.00024657,2]
[336909547,1725239444840,-500.0,0.00024657,2]
[336909548,1725239444851,-500.0,0.00024657,2]
[336909549,1725239444860,-500.0,0.00024657,2]
[336909550,1725239444869,-500.0,0.00024657,2]
[336909551,1725239444879,-3202.95,0.00024657,2]
[336909552,1725239444888,-500.0,0.00024657,2]
[336909553,1725239444898,-500.0,0.00024657,2]
[336909554,1725239444907,-500.0,0.00024657,2]
[336909555,1725239444916,-500.0,0.00024657,2]
[336909556,1725239444925,-1437.59,0.00024657,2]
[336909557,1725239444935,-1306.12,0.00024657,2]
[336909558,1725239444944,-500.0,0.00024657,2]
[336909559,1725239444953,-611.76,0.00024657,2]
[336909560,1725239444963,-442.89816768,0.00024657,2]
[336909561,1725239444971,-500.0,0.00024657,2]
[336909562,1725239444981,-500.0,0.00024657,2]
[336909563,1725239444990,-500.0,0.00024657,2]
[336909564,1725239445003,-500.0,0.00024657,2]
[336909565,1725239445012,-500.0,0.00024657,2]
[336909566,1725239445022,-500.0,0.00024657,2]
[336909567,1725239445031,-500.0,0.00024657,2]
[336909568,1725239445040,-500.0,0.00024657,2]
[336909569,1725239445050,-500.0,0.00024657,2]
[336909570,1725239445059,-500.0,0.00024657,2]
[336909571,1725239445068,-500.0,0.00024657,2]
[336909572,1725239445079,-840.17,0.00024657,2]
[336909573,1725239445088,-500.0,0.00024657,2]
[336909574,1725239445098,-500.0,0.00024657,2]
[336909575,1725239445107,-902.64,0.00024657,2]
[336909576,1725239445116,-500.0,0.00024657,2]
[336909577,1725239445125,-1768.12,0.00024657,2]
[336909578,1725239445135,-500.0,0.00024657,2]
[336909579,1725239445144,-500.0,0.00024657,2]
[336909580,1725239445153,-2797.92,0.00024657,2]
[336909581,1725239445163,-13436.3,0.00024657,2]
[336909582,1725239445172,-587.08,0.00024657,2]
[336909583,1725239445182,-500.0,0.00024657,2]
[336909584,1725239445191,-529.26773244,0.00024657,2]
[336909585,1725239445200,-500.0,0.00024657,2]
[336909586,1725239445210,-501.38547877,0.00024657,2]
[336909587,1725239445219,-500.0,0.00024657,2]
[336909588,1725239445228,-500.0,0.00024657,2]
[336909589,1725239445237,-500.0,0.00024657,2]
[336909590,1725239445247,-500.0,0.00024657,2]
[336909592,1725239445256,-1885.13,0.00024657,2]
[336909594,1725239445266,-500.0,0.00024657,2]
[336909595,1725239445275,-500.0,0.00024657,2]
[336909596,1725239445284,-2509.91,0.00024657,2]
[336909597,1725239445294,-500.0,0.00024657,2]
[336909598,1725239445304,-500.0,0.00024657,2]
[336909599,1725239445314,-505.68812202,0.00024657,2]
[336909600,1725239445323,-500.0,0.00024657,2]
[336909601,1725239445333,-500.0,0.00024657,2]
[336909602,1725239445342,-500.0,0.00024657,2]
[336909603,1725239445351,-500.0,0.00024657,2]
[336909604,1725239445360,-500.0,0.00024657,2]
[336909605,1725239445370,-500.0,0.00024657,2]
[336909606,1725239445379,-384.48459736,0.00024657,2]
[336909607,1725239445389,-2662.87,0.00024657,2]
[336909608,1725239445398,-500.0,0.00024657,2]
[336909609,1725239445407,-500.0,0.00024657,2]
[336909610,1725239445416,-500.0,0.00024657,2]
[336909611,1725239445425,-2938.96,0.00024657,2]
[336909612,1725239445434,-500.0,0.00024657,2]
[336909613,1725239445443,-500.0,0.00024657,2]
[336909614,1725239445453,-500.0,0.00024657,2]
[336909615,1725239445463,-500.0,0.00024657,2]
[336909616,1725239445472,-500.0,0.00024657,2]
[336909617,1725239445481,-652.85,0.00024657,2]
[336909618,1725239445490,-500.0,0.00024657,2]
[336909619,1725239445500,-500.0,0.00024657,2]
[336909620,1725239445509,-500.0,0.00024657,2]
[336909621,1725239445518,-500.0,0.00024657,2]
[336909622,1725239445527,-500.0,0.00024657,2]
[336909623,1725239445536,-500.0,0.00024657,2]
[336909624,1725239445545,-500.0,0.00024657,2]
[336909625,1725239445554,-500.0,0.00024657,2]
[336909626,1725239445564,-500.0,0.00024657,2]
[336909627,1725239445573,-500.0,0.00024657,2]
[336909628,1725239445582,-500.0,0.00024657,2]
[336909629,1725239445592,-500.0,0.00024657,2]
[336909630,1725239445603,-551.05,0.00024657,2]
[336909631,1725239445613,-500.0,0.00024657,2]
[336909632,1725239445624,-500.0,0.00024657,2]
[336909633,1725239445762,-500.0,0.00024657,2]
[336909634,1725239445772,-2363.73,0.00024657,2]
[336909635,1725239445782,-500.0,0.00024657,2]
[336909636,1725239445791,-638.76,0.00024657,2]
[336909637,1725239445802,-1224.57,0.00024657,2]
[336909638,1725239445812,-500.0,0.00024657,2]
[336909639,1725239445824,-500.0,0.00024657,2]
[336909640,1725239445834,-500.0,0.00024657,2]
[336909641,1725239445844,-500.0,0.00024657,2]
[336909642,1725239445854,-500.0,0.00024657,2]
[336909643,1725239445865,-1377.44,0.00024657,2]
[336909644,1725239445876,-500.0,0.00024657,2]
[336909645,1725239445886,-575.98,0.00024657,2]
[336909646,1725239445896,-500.0,0.00024657,2]
[336909647,1725239445907,-804.43,0.00024657,2]
[336909648,1725239445916,-811.75,0.00024657,2]
[336909649,1725239445926,-500.0,0.00024657,2]
[336909650,1725239445937,-500.0,0.00024657,2]
[336909651,1725239445946,-500.0,0.00024657,2]
[336909652,1725239445955,-500.0,0.00024657,2]
[336909653,1725239445966,-1673.67,0.00024657,2]
[336909654,1725239445976,-500.0,0.00024657,2]
[336909655,1725239445986,-692.85,0.00024657,2]
[336909656,1725239445998,-500.0,0.00024657,2]
[336909657,1725239446007,-500.0,0.00024657,2]
[336909658,1725239446017,-938.3,0.00024657,2]
[336909659,1725239446027,-512.79541857,0.00024657,2]
[336909660,1725239446038,-500.0,0.00024657,2]
[336909661,1725239446049,-500.0,0.00024657,2]
[336909662,1725239446061,-500.0,0.00024657,2]
[336909663,1725239446071,-1633.6,0.00024657,2]
[336909664,1725239446082,-571.10603971,0.00024657,2]
[336909665,1725239446095,-500.0,0.00024657,2]
[336909666,1725239446105,-1689.39,0.00024657,2]
[336909667,1725239446115,-1970.11,0.00024657,2]
[336909668,1725239446125,-500.0,0.00024657,2]
[336909669,1725239446135,-955.76,0.00024657,2]
[336909670,1725239446144,-500.0,0.00024657,2]
[336909672,1725239446154,-500.0,0.00024657,2]
[336909673,1725239446165,-619.63,0.00024657,2]
[336909674,1725239446174,-500.0,0.00024657,2]
[336909675,1725239446184,-2505.21,0.00024657,2]
[336909676,1725239446196,-500.0,0.00024657,2]
[336909677,1725239446207,-1987.62,0.00024657,2]
[336909678,1725239446216,-500.0,0.00024657,2]
[336909679,1725239446225,-500.0,0.00024657,2]
[336909680,1725239446236,-500.0,0.00024657,2]
[336909681,1725239446246,-500.0,0.00024657,2]
[336909682,1725239446259,-500.0,0.00024657,2]
[336909683,1725239446269,-500.0,0.00024657,2]
[336909684,1725239446278,-1159.8,0.00024657,2]
[336909685,1725239446288,-500.0,0.00024657,2]
[336909686,1725239446297,-500.0,0.00024657,2]
[336909688,1725239446308,-500.0,0.00024657,2]
[336909689,1725239446317,-2688.66,0.00024657,2]
[336909690,1725239446327,-1244.42,0.00024657,2]
[336909691,1725239446338,-500.0,0.00024657,2]
[336909692,1725239446349,-500.0,0.00024657,2]
[336909693,1725239446359,-500.93254474,0.00024657,2]
[336909694,1725239446368,-500.0,0.00024657,2]
[336909695,1725239446378,-931.62,0.00024657,2]
[336909696,1725239446388,-594.1,0.00024657,2]
[336909697,1725239446397,-559.58,0.00024657,2]
[336909698,1725239446407,-773.26,0.00024657,2]
[336909699,1725239446416,-500.0,0.00024657,2]
[336909700,1725239446425,-1201.32,0.00024657,2]
[336909701,1725239446435,-500.0,0.00024657,2]
[336909702,1725239446446,-500.0,0.00024657,2]
[336909703,1725239446456,-724.49,0.00024657,2]
[336909704,1725239446466,-500.0,0.00024657,2]
[336909705,1725239446476,-500.0,0.00024657,2]
[336909706,1725239446485,-666.36,0.00024657,2]
[336909707,1725239446495,-290.40627938,0.00024657,2]
[336909708,1725239446505,-500.0,0.00024657,2]
[336909709,1725239446515,-500.0,0.00024657,2]
[336909711,1725239446525,-500.0,0.00024657,2]
[336909712,1725239446535,-500.0,0.00024657,2]
[336909713,1725239446545,-500.0,0.00024657,2]
[336909714,1725239446554,-500.0,0.00024657,2]
[336909715,1725239446564,-500.0,0.00024657,2]
[336909716,1725239446573,-500.0,0.00024657,2]
[336909717,1725239446583,-500.0,0.00024657,2]
[336909718,1725239446593,-1145.31,0.00024657,2]
[336909719,1725239446604,-532.51,0.00024657,2]
[336909720,1725239446614,-500.0,0.00024657,2]
[336909721,1725239446623,-584.5252583,0.00024657,2]
[336909722,1725239446633,-500.0,0.00024657,2]
[336909723,1725239446643,-500.0,0.00024657,2]
[336909724,1725239446652,-500.0,0.00024657,2]
[336909725,1725239446662,-500.0,0.00024657,2]
[336909726,1725239446671,-500.0,0.00024657,2]
[336909727,1725239446681,-662.94,0.00024657,2]
[336909728,1725239446691,-500.0,0.00024657,2]
[336909729,1725239446701,-500.85306537,0.00024657,2]
[336909730,1725239446710,-1683.73,0.00024657,2]
[336909731,1725239446720,-500.0,0.00024657,2]
[336909732,1725239446729,-667.75,0.00024657,2]
[336909733,1725239446739,-782.61,0.00024657,2]
[336909734,1725239446749,-1890.84,0.00024657,2]
[336909735,1725239446759,-500.0,0.00024657,2]
[336909736,1725239446769,-581.61373928,0.00024657,2]
[336909737,1725239446778,-500.63026469,0.00024657,2]
[336909738,1725239446788,-500.0,0.00024657,2]
[336909739,1725239446798,-500.0,0.00024657,2]
[336909740,1725239446807,-500.0,0.00024657,2]
[336909741,1725239446817,-500.0,0.00024657,2]
[336909742,1725239446826,-500.0,0.00024657,2]
[336909743,1725239446836,-9157.19,0.00024657,2]
[336909744,1725239446847,-500.0,0.00024657,2]
[336909745,1725239446857,-500.0,0.00024657,2]
[336909746,1725239446866,-1122.04,0.00024657,2]
[336909747,1725239446876,-1709.78,0.00024657,2]
[336909748,1725239446885,-500.0,0.00024657,2]
[336909749,1725239446894,-5965.13,0.00024657,2]
[336909750,1725239446904,-500.0,0.00024657,2]
[336909751,1725239446914,-500.0,0.00024657,2]
[336909752,1725239446924,-3674.5,0.00024657,2]
[336909753,1725239446934,-1682.89,0.00024657,2]
[336909754,1725239446943,-500.0,0.00024657,2]
[336909755,1725239446952,-500.0,0.00024657,2]
[336909756,1725239446971,-500.0,0.00024657,2]
[336909757,1725239446982,-1069.21,0.00024657,2]
[336909758,1725239446992,-1973.8,0.00024657,2]
[336909759,1725239447004,-500.0,0.00024657,2]
[336909760,1725239447015,-500.0,0.00024657,2]
[336909761,1725239447025,-500.0,0.00024657,2]
[336909762,1725239447034,-1847.46,0.00024657,2]
[336909763,1725239447045,-500.0,0.00024657,2]
[336909764,1725239447055,-500.0,0.00024657,2]
[336909765,1725239447064,-500.0,0.00024657,4]
[336909766,1725239447076,-500.0,0.00024657,2]
[336909767,1725239447086,-595.23,0.00024657,2]
[336909768,1725239447097,-1972.14,0.00024657,2]
[336909769,1725239447107,-500.0,0.00024657,2]
[336909770,1725239447117,-1673.29693566,0.00024657,2]
[336909771,1725239447661,-747.04306434,0.00024657,2]
[336909772,1725239447670,-545.41,0.00024657,2]
[336909773,1725239447680,-500.0,0.00024657,2]
[336909774,1725239447689,-500.0,0.00024657,2]
[336909775,1725239447698,-500.0,0.00024657,2]
[336909776,1725239447708,-500.0,0.00024657,2]
[336909777,1725239447717,-1537.71,0.00024657,2]
[336909778,1725239447726,-500.0,0.00024657,2]
[336909779,1725239447736,-1156.99,0.00024657,2]
[336909780,1725239447745,-1531.17,0.00024657,2]
[336909781,1725239447755,-500.0,0.00024657,2]
[336909782,1725239447764,-500.0,0.00024657,2]
[336909783,1725239447774,-500.0,0.00024657,2]
[336909784,1725239447783,-849.02,0.00024657,2]
[336909785,1725239447793,-500.0,0.00024657,2]
[336909786,1725239447802,-500.0,0.00024657,2]
[336909787,1725239447812,-640.52,0.00024657,2]
[336909788,1725239447821,-500.0,0.00024657,2]
[336909789,1725239447831,-2342.56,0.00024657,2]
[336909790,1725239447840,-500.0,0.00024657,2]
[336909791,1725239447851,-380.0,0.00024658,2]
[336909792,1725239447862,-200.0,0.00024658,15]
[336909793,1725239447871,-500.0,0.00024673,2]
[336909794,1725239447881,-566.0930153,0.00024694,2]
[336909795,1725239447891,-566.0930153,0.00024763,2]
[336909796,1725239447900,-566.0930153,0.00024831,2]
[336909797,1725239447910,-500.0,0.0002492,2]
[336909798,1725239447920,-1993.58,0.0002492,2]
[336909799,1725239447929,-500.0,0.0002492,2]
[336909800,1725239447939,-9672.05411568,0.00024921,3]
[336909801,1725239447949,-500.0,0.00024929,2]
[336909802,1725239447958,-1993.58,0.00024929,2]
[336909803,1725239447967,-151.0,0.00024929,7]
[336909804,1725239447976,-151.0,0.00024929,7]
[336909805,1725239447986,-500.0,0.0002493,2]
[336909806,1725239448164,-210.98435553,0.0002493,2]
[336909807,1725239448174,-151.0,0.0002493,7]
[336909808,1725239448184,-1993.58,0.0002493,2]
[336909809,1725239448193,-1993.58,0.0002493,2]
[336909810,1725239448203,-1993.58,0.0002493,2]
[336909811,1725239448213,-1993.58,0.0002493,2]
[336909812,1725239448223,-1993.58,0.0002493,2]
[336909813,1725239448233,-1993.58,0.0002493,2]
[336909814,1725239448243,-1993.58,0.0002493,2]
[336909815,1725239448252,-1993.58391047,0.0002493,2]
[336909816,1725239448262,-205.2154164,0.00024931,2]
[336909817,1725239448271,-580.48,0.00024931,2]
[336909818,1725239448281,-500.0,0.00024931,2]
[336909819,1725239448292,-500.0,0.00024931,2]
[336909820,1725239448302,-500.0,0.00024931,2]
[336909821,1725239448311,-540.93524496,0.00024931,2]
[336909822,1725239448321,-500.0,0.00024931,2]
[336909823,1725239448330,-1045.52,0.00024931,2]
[336909824,1725239448341,-500.0,0.00024931,2]
[336909825,1725239448351,-500.0,0.00024931,2]
[336909826,1725239448361,-500.0,0.00024931,2]
[336909827,1725239448370,-500.0,0.00024931,2]
[336909828,1725239448381,-154.83952908,0.00024931,2]
[336909829,1725239448393,-500.0,0.00024931,2]
[336909830,1725239448404,-500.0,0.00024931,2]
[336909831,1725239448414,-584.48848356,0.00024931,2]
[336909832,1725239448423,-500.0,0.00024931,2]
[336909833,1725239448433,-500.0,0.00024931,2]
[336909834,1725239448442,-500.0,0.00024931,2]
[336909835,1725239448452,-500.0,0.00024931,2]
[336909836,1725239448461,-505.29352395,0.00024931,2]
[336909837,1725239448471,-290.23250147,0.00024931,2]
[336909838,1725239448482,-500.0,0.00024931,2]
[336909839,1725239448492,-500.0,0.00024931,2]
[336909840,1725239448501,-500.0,0.00024931,2]
[336909841,1725239448511,-500.0,0.00024931,2]
[336909842,1725239448521,-500.0,0.00024931,2]
[336909843,1725239448531,-500.0,0.00024931,2]
[336909844,1725239448541,-503.22517086,0.00024931,2]
[336909845,1725239448551,-500.0,0.00024931,2]
[336909846,1725239448560,-505.35678504,0.00024931,2]
[336909847,1725239448569,-500.0,0.00024931,2]
[336909848,1725239448579,-500.0,0.00024931,2]
[336909849,1725239448588,-368.99011333,0.00024931,2]
[336909850,1725239448597,-500.0,0.00024931,2]
[336909851,1725239448607,-500.0,0.00024931,2]
[336909852,1725239448616,-500.0,0.00024931,2]